bitfinex/quotes_BTCUSD_20250129
["timestamp","ask_amount","ask_price","bid_price","bid_amount"]
[1738171484893,0.0001423,102330.0,102320.0,0.152598]
[1738171485280,0.0001423,102330.0,102320.0,0.150598]
[1738171485716,0.0001423,102330.0,102320.0,0.151598]
[1738171487802,0.0001423,102330.0,102320.0,0.251598]
[1738171488029,0.0001423,102330.0,102320.0,0.50206097]
[1738171488255,0.0001423,102330.0,102320.0,0.54876097]
[1738171488972,0.1467263,102330.0,102320.0,0.005]
[1738171489197,0.27304773,102330.0,102320.0,0.005]
[1738171489399,0.36906946,102330.0,102320.0,0.005]
[1738171491381,0.62924074,102330.0,102320.0,0.005]
[1738171491584,0.84676878,102330.0,102320.0,0.005]
[1738171491809,0.86676878,102330.0,102320.0,0.005]
[1738171492008,0.76941202,102330.0,102320.0,0.005]
[1738171492550,0.76941202,102330.0,102320.0,0.004]
[1738171492761,0.64924074,102330.0,102320.0,0.005]
[1738171493138,0.64924074,102330.0,102320.0,0.001]
[1738171493558,0.64924074,102330.0,102320.0,0.002]
[1738171493963,0.65820778,102330.0,102320.0,0.002]
[1738171494940,0.65820778,102330.0,102320.0,0.001]
[1738171495148,0.296598,102320.0,102310.0,0.00029883]
[1738171495364,0.24384116,102320.0,102310.0,0.00029883]
[1738171495606,0.146598,102320.0,102310.0,0.00029883]
[1738171497306,0.146598,102320.0,102310.0,0.00129883]
[1738171498811,0.14781972,102320.0,102310.0,0.00129883]
[1738171499401,0.146598,102320.0,102310.0,0.00129883]
[1738171501211,0.14781972,102320.0,102310.0,0.00129883]
[1738171501395,0.146598,102320.0,102310.0,0.00129883]
[1738171502012,0.146598,102320.0,102310.0,0.14791183]
[1738171503465,0.74208834,102330.0,102310.0,0.53887283]
[1738171503931,0.146598,102320.0,102310.0,0.00129883]
[1738171504366,0.146598,102320.0,102310.0,0.14791183]
[1738171504569,0.146598,102320.0,102310.0,0.14691183]
[1738171504952,0.146598,102320.0,102310.0,0.14791183]
[1738171505163,0.146598,102320.0,102310.0,0.14691183]
[1738171505525,0.146598,102320.0,102310.0,0.14791183]
[1738171506922,0.146598,102320.0,102310.0,0.00129883]
[1738171507115,0.146598,102320.0,102310.0,0.14791183]
[1738171508683,0.54662434,102330.0,102310.0,0.34338683]
[1738171508891,0.0001423,102330.0,102320.0,0.146598]
[1738171509072,0.0001423,102330.0,102320.0,0.246598]
[1738171509680,0.0001423,102330.0,102320.0,0.34384116]
[1738171509889,0.0001423,102330.0,102320.0,0.42564116]
[1738171510028,0.0001423,102330.0,102320.0,0.57564116]
[1738171510457,0.0001423,102330.0,102320.0,0.57664116]
[1738171510768,0.0001423,102330.0,102320.0,0.57564116]
[1738171510971,0.0001423,102330.0,102320.0,0.60583703]
[1738171511266,0.0001423,102330.0,102320.0,0.60264116]
[1738171512056,0.0001423,102330.0,102320.0,0.89674116]
[1738171512267,0.0001423,102330.0,102320.0,0.92692962]
[1738171512502,0.0001423,102330.0,102320.0,0.92792962]
[1738171512811,0.0001423,102330.0,102320.0,1.26205462]
[1738171513022,0.0001423,102330.0,102320.0,1.26105462]
[1738171513257,0.0001423,102330.0,102320.0,1.26405462]
[1738171513470,0.0001423,102330.0,102320.0,1.26005462]
[1738171514301,4.809e-05,102340.0,102330.0,0.419584]
[1738171514511,4.809e-05,102340.0,102330.0,0.51682716]
[1738171514655,4.809e-05,102340.0,102330.0,0.54701562]
[1738171515068,4.809e-05,102340.0,102330.0,0.84435962]
[1738171515344,4.809e-05,102340.0,102330.0,1.64095962]
[1738171515515,4.809e-05,102340.0,102330.0,1.65095962]
[1738171515863,4.809e-05,102340.0,102330.0,1.65295962]
[1738171516268,4.809e-05,102340.0,102330.0,1.6707631]
[1738171516468,4.809e-05,102340.0,102330.0,1.65395962]
[1738171517095,4.809e-05,102340.0,102330.0,1.48491562]
[1738171517217,4.809e-05,102340.0,102330.0,3.4161211]
[1738171517438,4.809e-05,102340.0,102330.0,3.1748621]
[1738171517670,4.809e-05,102340.0,102330.0,3.14705862]
[1738171518072,4.809e-05,102340.0,102330.0,3.15605862]
[1738171518689,4.809e-05,102340.0,102330.0,3.1758621]
[1738171518952,4.809e-05,102340.0,102330.0,3.1647881]
[1738171519383,4.809e-05,102340.0,102330.0,2.6221881]
[1738171519579,9e-08,102340.0,102330.0,2.66335405]
[1738171519799,9e-08,102340.0,102330.0,1.15878505]
[1738171520363,9e-08,102340.0,102330.0,1.14978505]
[1738171520584,9e-08,102340.0,102330.0,1.15878505]
[1738171520830,9e-08,102340.0,102330.0,1.14978505]
[1738171521047,9e-08,102340.0,102330.0,1.14678505]
[1738171521246,9e-08,102340.0,102330.0,1.15578505]
[1738171521597,9e-08,102340.0,102330.0,1.15978505]
[1738171523810,9e-08,102340.0,102330.0,1.17520867]
[1738171524032,0.00014239,102340.0,102330.0,1.17520867]
[1738171524489,3.9e-07,102340.0,102330.0,1.17920867]
[1738171524702,0.0001823,102380.0,102370.0,0.246527]
[1738171524912,0.00066383,102380.0,102370.0,0.35305016]
[1738171525143,0.00066383,102380.0,102370.0,0.50305016]
[1738171526161,0.00066383,102380.0,102370.0,0.50805016]
[1738171526422,0.00066383,102380.0,102370.0,0.53687577]
[1738171527654,0.00066383,102380.0,102370.0,0.50805016]
[1738171528649,0.00066383,102380.0,102370.0,0.53105016]
[1738171528820,0.00066383,102380.0,102370.0,0.57748657]
[1738171530621,0.00066383,102380.0,102370.0,0.57348657]
[1738171530755,0.00066383,102380.0,102370.0,1.02587857]
[1738171530957,0.00066383,102380.0,102370.0,1.03287857]
[1738171531373,0.00066383,102380.0,102370.0,0.69586057]
[1738171531597,0.00066383,102380.0,102370.0,0.81466057]
[1738171532840,0.00066383,102380.0,102370.0,0.78436957]
[1738171533038,0.00066383,102380.0,102370.0,0.59176229]
[1738171533189,0.00066383,102380.0,102370.0,0.71429429]
[1738171534218,0.1233422,102400.0,102390.0,0.246498]
[1738171534435,0.12348338,102400.0,102390.0,0.246498]
[1738171534635,0.12348338,102400.0,102390.0,0.146498]
[1738171536197,0.12470407,102400.0,102390.0,0.155778]
[1738171536401,0.12470407,102400.0,102390.0,0.156778]
[1738171536602,0.27118807,102400.0,102390.0,0.001]
[1738171536810,0.26996738,102400.0,102390.0,0.001]
[1738171537348,0.26996738,102400.0,102390.0,0.147498]
[1738171537558,0.00028338,102400.0,102390.0,0.247498]
[1738171538195,0.12968338,102400.0,102390.0,0.147498]
[1738171538612,0.12968338,102400.0,102390.0,0.148498]
[1738171539078,0.27616738,102400.0,102390.0,0.148498]
[1738171539286,0.27616738,102400.0,102390.0,0.147498]
[1738171539713,0.12968338,102400.0,102390.0,0.151498]
[1738171539918,0.27616738,102400.0,102390.0,0.151498]
[1738171540787,0.12968338,102400.0,102390.0,0.151498]
[1738171541259,0.27616738,102400.0,102390.0,0.151498]
[1738171541696,0.12968338,102400.0,102390.0,0.151498]
[1738171542094,0.12968338,102400.0,102390.0,0.251498]
[1738171545523,0.12968338,102400.0,102390.0,0.260778]
[1738171547179,0.12968338,102400.0,102390.0,0.29095273]
[1738171552563,0.00028338,102400.0,102390.0,0.29095273]
[1738171558814,0.333386,102370.0,102350.0,0.10646362]
[1738171559021,0.32540562,102360.0,102350.0,0.08658272]
[1738171559225,0.32418416,102360.0,102350.0,0.08658272]
[1738171560054,0.226941,102360.0,102350.0,0.08958272]
[1738171560262,0.226941,102360.0,102350.0,0.09858272]
[1738171560436,0.226941,102360.0,102350.0,0.09906425]
[1738171560643,0.226941,102360.0,102350.0,0.09606425]
[1738171560840,0.226941,102360.0,102350.0,0.09706425]
[1738171561042,0.226941,102360.0,102350.0,0.08806425]
[1738171561389,0.226941,102360.0,102350.0,0.00548153]
[1738171561674,0.32418416,102360.0,102350.0,0.00548153]
[1738171561904,0.67607932,102360.0,102350.0,0.00548153]
[1738171562114,0.8618506,102360.0,102350.0,0.00548153]
[1738171562326,0.8618506,102360.0,102340.0,0.00029883]
[1738171562327,0.255755,102350.0,102340.0,0.00029883]
[1738171562539,0.50925097,102350.0,102340.0,0.00029883]
[1738171563488,0.48925097,102350.0,102340.0,0.00129883]
[1738171563925,0.47925097,102350.0,102340.0,0.00129883]
[1738171564285,0.62925097,102350.0,102340.0,0.00129883]
[1738171564500,0.72660773,102350.0,102340.0,0.00129883]
[1738171564704,0.62925097,102350.0,102340.0,0.00029883]
[1738171566111,0.63325097,102350.0,102340.0,0.00029883]
[1738171567544,0.48325097,102350.0,102340.0,0.00029883]
[1738171567742,0.37307969,102350.0,102340.0,0.00029883]
[1738171568200,0.32747969,102350.0,102340.0,0.00029883]
[1738171568556,0.15103653,102350.0,102340.0,0.00029883]
[1738171568968,0.14803653,102350.0,102340.0,0.24686883]
[1738171569335,0.14703653,102350.0,102340.0,0.24686883]
[1738171569615,0.00048153,102350.0,102340.0,0.24786883]
[1738171570268,0.14703653,102350.0,102340.0,0.10129883]
[1738171570494,0.14825781,102350.0,102340.0,0.10129883]
[1738171570696,0.25842909,102350.0,102340.0,0.00129883]
[1738171570914,0.25720781,102350.0,102340.0,0.00129883]
[1738171571133,0.24427969,102350.0,102340.0,0.00129883]
[1738171582654,0.14703653,102350.0,102340.0,0.00129883]
[1738171583931,0.14704496,102350.0,102340.0,0.00129883]
[1738171588223,0.25721624,102350.0,102340.0,0.00129883]
[1738171588424,0.14704496,102350.0,102340.0,0.00129883]
[1738171593263,0.35568079,102350.0,102340.0,0.00129883]
[1738171593465,0.72671616,102350.0,102340.0,0.00129883]
[1738171594094,0.6293594,102350.0,102340.0,0.00129883]
[1738171594363,0.6293594,102350.0,102340.0,0.00029883]
[1738171594785,0.6393594,102350.0,102340.0,0.00029883]
[1738171595247,0.6593594,102350.0,102340.0,0.00029883]
[1738171595674,0.6593594,102350.0,102340.0,0.00129883]
[1738171595881,0.6603594,102350.0,102340.0,0.00129883]
[1738171596312,0.6403594,102350.0,102340.0,0.00129883]
[1738171596524,0.6603594,102350.0,102340.0,0.00029883]
[1738171597746,0.6623594,102350.0,102340.0,0.00029883]
[1738171598298,0.68189243,102350.0,102340.0,0.00029883]
[1738171601375,0.66189243,102350.0,102340.0,0.00029883]
[1738171603434,0.68189243,102350.0,102340.0,0.00029883]
[1738171604695,0.66189243,102350.0,102340.0,0.00029883]
[1738171605880,0.27857,102340.0,102330.0,0.00029883]
[1738171606124,0.372798,102320.0,102310.0,0.00029883]
[1738171606349,0.58021244,102320.0,102310.0,0.00029883]
[1738171607219,0.58021244,102320.0,102310.0,0.00129883]
[1738171608448,0.39384116,102320.0,102310.0,0.00129883]
[1738171608875,0.40148719,102320.0,102310.0,0.00129883]
[1738171609078,0.51165847,102320.0,102310.0,0.00129883]
[1738171609909,0.56494693,102320.0,102310.0,0.00129883]
[1738171610156,0.63955847,102320.0,102310.0,0.00129883]
[1738171611499,0.64055847,102320.0,102310.0,0.00129883]
[1738171611701,0.64055847,102320.0,102310.0,0.00029883]
[1738171612001,0.64255847,102320.0,102310.0,0.00029883]
[1738171613446,0.66202367,102320.0,102310.0,0.00029883]
[1738171615207,0.75491794,102320.0,102310.0,0.00029883]
[1738171615978,0.66202367,102320.0,102310.0,0.00029883]
[1738171620952,0.61542367,102320.0,102310.0,0.00029883]
[1738171621156,0.53412367,102320.0,102310.0,0.00029883]
[1738171621356,0.41395239,102320.0,102310.0,0.00029883]
[1738171623359,0.52412367,102320.0,102310.0,0.00029883]
[1738171625632,0.41395239,102320.0,102310.0,0.00029883]
[1738171626470,0.26395239,102320.0,102310.0,0.00029883]
[1738171628081,0.14724403,102320.0,102310.0,0.04679883]
[1738171628484,0.139598,102320.0,102310.0,0.12269883]
[1738171629409,0.139598,102320.0,102310.0,0.26931183]
[1738171629847,0.139598,102320.0,102310.0,0.12269883]
[1738171630352,0.1397403,102320.0,102310.0,0.12269883]
[1738171631220,0.1397403,102320.0,102310.0,0.26931183]
[1738171631653,0.1397403,102320.0,102310.0,0.12269883]
[1738171632247,0.0031423,102320.0,102310.0,0.26931183]
[1738171633280,0.1497403,102320.0,102310.0,0.26931183]
[1738171633529,0.1467403,102320.0,102310.0,0.26931183]
[1738171634834,0.1467403,102320.0,102310.0,0.27031183]
[1738171635276,0.1467403,102320.0,102310.0,0.26931183]
[1738171635502,0.1467403,102320.0,102310.0,0.27331183]
[1738171636512,0.25691158,102320.0,102310.0,0.00429883]
[1738171636715,0.35415474,102320.0,102310.0,0.00429883]
[1738171637128,0.35415474,102320.0,102310.0,0.00529883]
[1738171637684,0.35415474,102320.0,102310.0,0.00029883]
[1738171637885,0.35515474,102320.0,102310.0,0.00029883]
[1738171638114,0.35515474,102320.0,102310.0,0.00129883]
[1738171638276,0.35515474,102320.0,102310.0,0.00029883]
[1738171638731,0.35715474,102320.0,102310.0,0.00029883]
[1738171639627,0.24698346,102320.0,102310.0,0.00029883]
[1738171641251,0.25298508,102320.0,102310.0,0.00029883]
[1738171642191,0.15574192,102320.0,102310.0,0.00029883]
[1738171642407,0.1497403,102320.0,102310.0,0.04849883]
[1738171642677,0.1497403,102320.0,102310.0,0.19511183]
[1738171642892,0.1497403,102320.0,102310.0,0.27681183]
[1738171643471,0.1487403,102320.0,102310.0,0.27681183]
[1738171644066,0.1467403,102320.0,102310.0,0.27681183]
[1738171644271,0.1467403,102320.0,102310.0,0.27781183]
[1738171644705,0.1467403,102320.0,102310.0,0.27681183]
[1738171644880,0.1467403,102320.0,102310.0,0.27781183]
[1738171646389,0.0001423,102320.0,102310.0,0.27781183]
[1738171648301,0.0001423,102320.0,102310.0,0.47505499]
[1738171653844,0.0001423,102320.0,102310.0,0.47405499]
[1738171654253,0.0001423,102320.0,102310.0,0.75729499]
[1738171654468,0.0001423,102320.0,102310.0,1.56969229]
[1738171654678,0.0001423,102320.0,102310.0,1.57269229]
[1738171654851,0.0001423,102320.0,102310.0,1.56869229]
[1738171655291,0.0001423,102320.0,102310.0,1.57269229]
[1738171655530,0.0001423,102320.0,102310.0,1.56869229]
[1738171655942,0.0001423,102330.0,102320.0,0.2]
[1738171656159,0.0001423,102330.0,102320.0,0.62408746]
[1738171656362,0.0001423,102330.0,102320.0,0.75108746]
[1738171657790,0.0001423,102330.0,102320.0,0.75208746]
[1738171659211,0.0001423,102330.0,102320.0,0.77508746]
[1738171659347,0.0001423,102330.0,102320.0,1.06307746]
[1738171659565,0.0001423,102330.0,102320.0,1.06707746]
[1738171660424,0.0001423,102330.0,102320.0,0.92508746]
[1738171660655,0.0001423,102330.0,102320.0,3.18763046]
[1738171660857,0.0001423,102330.0,102320.0,3.18663046]
[1738171661065,0.0001423,102330.0,102320.0,3.18263046]
[1738171661273,0.0001423,102330.0,102320.0,3.18930418]
[1738171661480,0.0001423,102330.0,102320.0,3.19530418]
[1738171661688,0.0001423,102330.0,102320.0,3.19730418]
[1738171661898,0.0001423,102330.0,102320.0,3.20730418]
[1738171662343,0.0001423,102330.0,102320.0,3.22730418]
[1738171663437,0.0001423,102330.0,102320.0,3.76990418]
[1738171664588,0.0001423,102330.0,102320.0,3.79604909]
[1738171665453,0.0001423,102330.0,102320.0,3.52798418]
[1738171665659,0.0001423,102330.0,102320.0,3.04967418]
[1738171665867,0.0001423,102330.0,102320.0,2.94977518]
[1738171668075,0.0001423,102330.0,102320.0,2.96905621]
[1738171669313,0.0001423,102330.0,102320.0,2.42645621]
[1738171672012,0.0001423,102330.0,102320.0,2.40645621]
[1738171672220,0.0001423,102330.0,102320.0,2.42645621]
[1738171673661,0.0001423,102330.0,102320.0,2.52961621]
[1738171675335,0.0001423,102330.0,102320.0,3.07221621]
[1738171676170,0.00048996,102350.0,102340.0,0.49657]
[1738171676353,0.00048996,102350.0,102340.0,0.59381316]
[1738171678386,0.00048996,102350.0,102340.0,0.62390553]
[1738171678635,0.00048996,102350.0,102340.0,0.59381316]
[1738171679814,0.00048996,102350.0,102340.0,0.59481316]
[1738171680261,0.00048996,102350.0,102340.0,0.59781316]
[1738171680461,0.00048996,102350.0,102340.0,0.65092003]
[1738171680687,0.00048996,102350.0,102340.0,0.69912003]
[1738171681100,0.00048996,102350.0,102340.0,0.69812003]
[1738171681540,0.00048996,102350.0,102340.0,1.50811803]
[1738171681750,0.00048996,102350.0,102340.0,1.52811803]
[1738171682596,0.00048996,102350.0,102340.0,1.52711803]
[1738171682811,0.00048996,102350.0,102340.0,1.52911803]
[1738171683018,0.00048996,102350.0,102340.0,1.52611803]
[1738171683407,0.00048996,102350.0,102340.0,1.53211803]
[1738171684439,0.00048996,102350.0,102340.0,1.53960034]
[1738171685603,0.00048996,102350.0,102340.0,0.80610234]
[1738171685856,0.00048996,102350.0,102340.0,2.21627015]
[1738171686293,0.00048996,102350.0,102340.0,2.19327015]
[1738171686504,0.00048996,102350.0,102340.0,2.22227015]
[1738171687368,0.00048996,102350.0,102340.0,2.21927015]
[1738171687806,0.00048996,102350.0,102340.0,2.22227015]
[1738171688644,0.00048996,102350.0,102340.0,0.80050234]
[1738171688828,0.00048996,102350.0,102340.0,0.79119134]
[1738171689027,0.00048996,102350.0,102340.0,0.78199134]
[1738171689204,0.00048996,102350.0,102340.0,0.79119134]
[1738171690552,0.00048996,102350.0,102340.0,0.55260234]
[1738171692305,0.00048996,102350.0,102340.0,0.65260234]
[1738171692729,0.00048996,102350.0,102340.0,0.67560234]
[1738171694212,0.00048996,102350.0,102340.0,0.57560234]
[1738171694414,0.00048996,102350.0,102340.0,0.55260234]
[1738171695299,0.00048996,102350.0,102340.0,0.67560234]
[1738171696457,0.00048996,102350.0,102340.0,0.47560234]
[1738171696585,0.00048996,102350.0,102340.0,0.57560234]
[1738171697052,0.00048996,102350.0,102340.0,0.65260234]
[1738171705050,0.00048996,102350.0,102340.0,0.64340234]
[1738171705263,0.00048996,102350.0,102340.0,0.65260234]
[1738171706431,0.00048996,102350.0,102340.0,0.65224374]
[1738171709776,0.00048996,102350.0,102340.0,0.55224374]
[1738171710535,0.00048996,102350.0,102340.0,0.54304374]
[1738171710748,0.07928996,102350.0,102340.0,0.44751827]
[1738171711799,0.00048996,102350.0,102340.0,0.64476143]
[1738171713148,0.00048996,102350.0,102340.0,0.74766143]
[1738171716311,0.00048996,102350.0,102340.0,0.91470443]
[1738171716781,0.0001422,102360.0,102350.0,0.396555]
[1738171717016,0.0001422,102360.0,102350.0,0.52390503]
[1738171718137,0.0001422,102360.0,102350.0,0.53190503]
[1738171722208,0.0001422,102360.0,102350.0,0.43190503]
[1738171725416,0.0001422,102360.0,102350.0,0.4396668]
[1738171725621,0.0001422,102360.0,102350.0,0.4488668]
[1738171726322,0.1256422,102360.0,102350.0,0.4488668]
[1738171728995,0.1256422,102360.0,102350.0,0.5488668]
[1738171729483,0.2721832,102360.0,102350.0,0.20162364]
[1738171729693,0.2721832,102360.0,102350.0,0.19386187]
[1738171729864,0.1256422,102360.0,102350.0,0.163755]
[1738171730470,0.2721832,102360.0,102350.0,0.163755]
[1738171730677,0.2721832,102360.0,102350.0,0.0172]
[1738171730878,0.2721832,102360.0,102350.0,0.163755]
[1738171731083,0.1256422,102360.0,102350.0,0.163755]
[1738171731512,0.1256422,102360.0,102350.0,0.1940091]
[1738171734057,0.0792422,102360.0,102350.0,0.1940091]
[1738171734711,0.0001422,102360.0,102350.0,0.54125226]
[1738171736274,0.0001422,102360.0,102350.0,0.54895757]
[1738171736821,0.0001422,102360.0,102350.0,0.54925619]
[1738171737563,0.0001422,102360.0,102350.0,0.45201303]
[1738171739408,0.0813422,102360.0,102350.0,0.30201303]
[1738171740825,0.07413076,102360.0,102350.0,0.30201303]
[1738171741449,0.07323916,102360.0,102350.0,0.30201303]
[1738171742080,0.07092584,102360.0,102350.0,0.29430772]
[1738171742686,0.06612009,102360.0,102350.0,0.29430772]
[1738171743237,0.05646347,102360.0,102350.0,0.29430772]
[1738171743484,0.05646347,102360.0,102350.0,0.29561402]
[1738171743938,0.05477195,102360.0,102350.0,0.29561402]
[1738171744357,0.05477195,102360.0,102350.0,0.19561402]
[1738171744565,0.20131295,102360.0,102350.0,0.19561402]
[1738171744788,0.05477195,102360.0,102350.0,0.19561402]
[1738171745032,0.05477195,102360.0,102350.0,0.18641402]
[1738171745240,0.05477195,102360.0,102350.0,0.19357402]
[1738171745660,0.20253412,102360.0,102350.0,0.04201902]
[1738171745875,0.05477195,102360.0,102350.0,0.16131992]
[1738171746107,0.05477195,102360.0,102350.0,0.19157957]
[1738171746297,0.20131295,102360.0,102350.0,0.01476492]
[1738171750265,0.20145515,102360.0,102350.0,0.01476492]
[1738171756236,0.20145515,102360.0,102350.0,0.00560492]
[1738171756452,0.20145515,102360.0,102350.0,0.01476492]
[1738171757073,0.20145515,102360.0,102350.0,0.00560492]
[1738171757186,0.34389831,102360.0,102350.0,0.01476492]
[1738171757395,0.10011415,102360.0,102350.0,0.16131992]
[1738171758288,0.0001422,102360.0,102350.0,0.33886308]
[1738171758499,0.0001422,102360.0,102350.0,0.3690953]
[1738171758706,0.0001422,102360.0,102350.0,0.7190953]
[1738171759796,0.0001422,102360.0,102350.0,0.7420953]
[1738171761696,0.0001422,102360.0,102350.0,0.7390953]
[1738171761877,0.0001422,102360.0,102350.0,0.75244817]
[1738171762292,0.0001422,102360.0,102350.0,0.75444817]
[1738171762729,0.0001422,102360.0,102350.0,0.73144817]
[1738171763575,0.0001422,102360.0,102350.0,0.65114817]
[1738171764904,0.0001422,102360.0,102350.0,0.64198817]
[1738171765105,0.0001422,102360.0,102350.0,0.65114817]
[1738171765378,0.0001422,102360.0,102350.0,0.82578517]
[1738171765573,0.0001422,102360.0,102350.0,0.88640117]
[1738171766788,0.0001422,102360.0,102350.0,0.88692135]
[1738171769895,0.0001422,102360.0,102350.0,0.75666835]
[1738171774059,0.0001422,102360.0,102350.0,0.55166835]
[1738171774258,0.0001422,102360.0,102350.0,0.65166835]
[1738171777350,0.0001422,102360.0,102350.0,0.64331548]
[1738171777494,0.0001422,102360.0,102350.0,0.49331548]
[1738171777698,0.0478422,102360.0,102350.0,0.49331548]
[1738171778530,0.0001422,102360.0,102350.0,0.49331548]
[1738171780565,0.0001422,102360.0,102350.0,0.64331548]
[1738171780963,0.0001422,102360.0,102350.0,0.71191548]
[1738171782014,0.0001422,102360.0,102350.0,1.15926248]
[1738171782422,0.0799,102390.0,102380.0,0.146512]
[1738171782621,0.07999407,102390.0,102380.0,0.146512]
[1738171782846,0.07999407,102390.0,102380.0,0.14872899]
[1738171788892,9.407e-05,102390.0,102380.0,0.14872899]
[1738171793949,9.407e-05,102390.0,102380.0,0.44597215]
[1738171794272,9.407e-05,102390.0,102380.0,0.47621032]
[1738171794839,9.407e-05,102390.0,102380.0,0.47921032]
[1738171795034,9.407e-05,102390.0,102380.0,0.47721032]
[1738171796038,9.407e-05,102390.0,102380.0,0.47621032]
[1738171796453,9.407e-05,102390.0,102380.0,0.47921032]
[1738171797471,9.407e-05,102390.0,102380.0,0.48021032]
[1738171797887,0.00023627,102390.0,102380.0,0.48021032]
[1738171799168,0.00023627,102390.0,102380.0,0.47921032]
[1738171799429,0.00023627,102390.0,102380.0,0.48121032]
[1738171799639,0.00023627,102390.0,102380.0,0.47821032]
[1738171800093,0.00023627,102390.0,102380.0,0.48421032]
[1738171801169,0.00023627,102390.0,102380.0,0.50057215]
[1738171801371,0.00023627,102390.0,102380.0,1.07214301]
[1738171802491,0.00023627,102390.0,102380.0,0.94803301]
[1738171802699,0.00023627,102390.0,102380.0,0.93087701]
[1738171803605,0.00023627,102390.0,102380.0,0.80317701]
[1738171803823,0.00023627,102390.0,102380.0,0.81229701]
[1738171804032,0.00023627,102390.0,102380.0,0.78929701]
[1738171804246,0.00023627,102390.0,102380.0,0.75909215]
[1738171804895,0.00023627,102390.0,102380.0,0.60909215]
[1738171805531,0.00023627,102390.0,102380.0,0.63209215]
[1738171805739,0.00023627,102390.0,102380.0,0.70829215]
[1738171806120,0.00023627,102390.0,102380.0,1.28436093]
[1738171806395,0.00023627,102390.0,102380.0,1.12930093]
[1738171806835,0.00023627,102390.0,102380.0,1.07072193]
[1738171807071,0.00023627,102390.0,102380.0,1.22072193]
[1738171807291,0.00023627,102390.0,102380.0,1.26942193]
[1738171807740,0.00023627,102390.0,102380.0,1.23905093]
[1738171807943,0.00023627,102390.0,102380.0,1.21340493]
[1738171808122,0.00023627,102390.0,102380.0,1.17394393]
[1738171808337,0.00023627,102390.0,102380.0,1.14709793]
[1738171808476,0.00023627,102390.0,102380.0,1.12923593]
[1738171808884,0.00023627,102390.0,102380.0,1.11904693]
[1738171809867,0.00023627,102390.0,102380.0,1.11799076]
[1738171810190,0.00023627,102390.0,102380.0,1.10687076]
[1738171810391,0.00023627,102390.0,102380.0,1.11599076]
[1738171810802,0.00023627,102390.0,102380.0,1.11899076]
[1738171811174,0.00023627,102390.0,102380.0,1.11299076]
[1738171811406,0.00023627,102390.0,102380.0,1.12199076]
[1738171813252,0.00023627,102390.0,102380.0,0.70611476]
[1738171813471,0.00023627,102390.0,102380.0,0.69223476]
[1738171813669,0.00023627,102390.0,102380.0,0.79223476]
[1738171813869,0.00023627,102390.0,102380.0,0.81523476]
[1738171815330,0.00023627,102390.0,102380.0,0.89491777]
[1738171815533,0.00023627,102390.0,102380.0,0.89713476]
[1738171815929,0.00023627,102390.0,102380.0,1.50663476]
[1738171816157,2e-07,102400.0,102390.0,0.572698]
[1738171816359,0.0002423,102410.0,102400.0,3.172033]
[1738171816563,3e-07,102410.0,102400.0,3.35345228]
[1738171816767,3e-07,102410.0,102400.0,0.75410328]
[1738171816969,3e-07,102410.0,102400.0,0.67924594]
[1738171817725,3e-07,102410.0,102400.0,0.79132594]
[1738171818149,3e-07,102410.0,102400.0,0.79432594]
[1738171818377,3e-07,102410.0,102400.0,0.89432594]
[1738171819019,3e-07,102410.0,102400.0,0.89680369]
[1738171819350,3e-07,102410.0,102400.0,0.9167538]
[1738171820756,3e-07,102410.0,102400.0,0.92552033]
[1738171820960,3e-07,102410.0,102400.0,1.49812033]
[1738171821455,3e-07,102410.0,102400.0,1.55760709]
[1738171821872,0.0155173,102420.0,102410.0,1.035557]
[1738171822111,0.0155173,102420.0,102410.0,1.9310857]
[1738171822425,3e-07,102420.0,102410.0,1.91479428]
[1738171822600,0.0001423,102430.0,102420.0,3.81079215]
[1738171822804,0.0001423,102430.0,102420.0,3.5605784]
[1738171822805,0.00028665,102430.0,102420.0,3.5605784]
[1738171823010,0.00028665,102430.0,102420.0,3.8145784]
[1738171823215,0.00028665,102430.0,102420.0,3.9645784]
[1738171823420,0.00028665,102430.0,102420.0,3.98705043]
[1738171823831,0.00028665,102430.0,102420.0,2.50376243]
[1738171824035,0.00028665,102430.0,102420.0,2.52376243]
[1738171824454,0.00028665,102430.0,102420.0,2.52676243]
[1738171824659,0.00028665,102430.0,102420.0,2.27664043]
[1738171825002,0.00028665,102430.0,102420.0,2.25664043]
[1738171825206,0.00028665,102430.0,102420.0,2.28564043]
[1738171825410,6.5e-07,102430.0,102420.0,2.29564043]
[1738171825608,0.0001423,102450.0,102440.0,0.496427]
[1738171825821,0.0001423,102450.0,102440.0,2.13309616]
[1738171826063,0.0001423,102450.0,102440.0,2.13553185]
[1738171826213,0.0001423,102450.0,102440.0,2.31160262]
[1738171827091,0.0001423,102450.0,102440.0,2.4264637]
[1738171827458,0.0001422,102460.0,102450.0,0.023]
[1738171827459,0.00010221,102460.0,102450.0,0.023]
[1738171827633,0.00010221,102460.0,102450.0,2.74467493]
[1738171827848,0.00010221,102460.0,102450.0,2.74705266]
[1738171828062,0.00010221,102460.0,102450.0,2.75617266]
[1738171828485,0.00010221,102460.0,102450.0,2.54262066]
[1738171828742,0.07514441,102490.0,102480.0,0.2]
[1738171828946,0.07514441,102490.0,102480.0,0.44361316]
[1738171829152,0.07562579,102490.0,102480.0,0.44593452]
[1738171829361,0.07562579,102490.0,102480.0,0.59593452]
[1738171829362,0.00048138,102490.0,102480.0,0.59593452]
[1738171830449,0.00048138,102490.0,102480.0,0.59693452]
[1738171830826,0.00048138,102490.0,102480.0,0.59993452]
[1738171831032,0.00048138,102490.0,102480.0,0.62293452]
[1738171833013,0.00048138,102490.0,102480.0,0.51791291]
[1738171833729,0.00048138,102490.0,102480.0,0.50879291]
[1738171833925,0.00048138,102490.0,102480.0,0.51791291]
[1738171834127,0.00062368,102490.0,102480.0,0.51791291]
[1738171834733,0.00062368,102490.0,102480.0,0.50879291]
[1738171834957,0.00062368,102490.0,102480.0,0.51791291]
[1738171837888,0.0002423,102500.0,102490.0,0.146355]
[1738171838052,0.00038662,102500.0,102490.0,0.146355]
[1738171838242,0.07858662,102500.0,102490.0,0.14868018]
[1738171838445,0.07858662,102500.0,102490.0,0.15780018]
[1738171840568,0.07862662,102500.0,102490.0,0.15780018]
[1738171840775,0.27198713,102500.0,102490.0,0.14868018]
[1738171840972,0.27076762,102500.0,102490.0,0.00232518]
[1738171841183,0.27076762,102500.0,102490.0,0.14868018]
[1738171841388,0.12442662,102500.0,102490.0,0.14868018]
[1738171842102,0.12442662,102500.0,102490.0,0.13377265]
[1738171842310,0.12442662,102500.0,102490.0,0.14289265]
[1738171843280,0.00042662,102500.0,102490.0,0.34013581]
[1738171844470,0.00042662,102500.0,102490.0,0.34413581]
[1738171846466,0.00042662,102500.0,102490.0,0.34313581]
[1738171846670,0.00042662,102500.0,102490.0,0.34513581]
[1738171847285,0.00042662,102500.0,102490.0,0.34213581]
[1738171847728,0.00042662,102500.0,102490.0,0.34813581]
[1738171848957,0.00042662,102500.0,102490.0,0.34809581]
[1738171851934,0.02938272,102500.0,102490.0,0.34809581]
[1738171852376,0.02938272,102500.0,102490.0,0.3781241]
[1738171852577,0.07788272,102500.0,102490.0,0.27180094]